bitfinex/quotes_SOLUSD_20260223
["timestamp","ask_amount","ask_price","bid_price","bid_amount"]
[1771832794052,0.49251987,79.619,79.594,0.52404001]
[1771832794656,4.85855027,79.62,79.596,0.52404001]
[1771832795037,0.49251987,79.619,79.596,0.52404001]
[1771832796536,0.49251987,79.634,79.601,0.52404001]
[1771832796732,0.49251987,79.619,79.601,0.52404001]
[1771832796938,0.49251987,79.619,79.594,0.52404001]
[1771832797254,0.49251987,79.619,79.596,0.52404001]
[1771832797655,0.49251987,79.609,79.571,0.52404001]
[1771832797859,4.85855027,79.58,79.552,0.52404001]
[1771832798438,0.49251987,79.579,79.552,0.52404001]
[1771832798644,0.49251987,79.579,79.553,13.0942762]
[1771832798848,0.49251987,79.579,79.554,0.52404001]
[1771832799355,4.85855027,79.59,79.561,0.52404001]
[1771832799939,4.85855027,79.58,79.554,0.52404001]
[1771832800351,4.85855027,79.59,79.561,0.52404001]
[1771832800655,4.85855027,79.59,79.562,12.56881425]
[1771832800860,0.49251987,79.589,79.563,0.52404001]
[1771832801262,0.49251987,79.616,79.571,0.52404001]
[1771832801443,0.49251987,79.599,79.571,0.52404001]
[1771832801649,43.9604607,79.617,79.571,0.52404001]
[1771832801650,4.85855027,79.59,79.571,0.52404001]
[1771832802152,0.49251987,79.589,79.563,0.52404001]
[1771832802553,0.49251987,79.589,79.55,0.2]
[1771832802554,4.85855027,79.57,79.558,12.56936503]
[1771832802753,4.85855027,79.57,79.551,12.57055222]
[1771832803068,4.85855027,79.57,79.552,0.52404001]
[1771832804755,0.49251987,79.569,79.551,12.57055222]
[1771832804939,0.49251987,79.569,79.55,0.2]
[1771832805149,0.49251987,79.569,79.55,12.7705609]
[1771832805462,0.49251987,79.576,79.551,0.52404001]
[1771832806449,4.85855027,79.58,79.551,0.52404001]
[1771832807661,0.49365556,79.579,79.553,0.5225716]
[1771832808064,0.49365556,79.579,79.552,12.5703942]
[1771832808065,4.85855027,79.57,79.552,12.5703942]
[1771832809149,4.85855027,79.57,79.55,0.2]
[1771832809961,4.85855027,79.56,79.55,0.2]
[1771832810970,0.49365556,79.559,79.533,0.5225716]
[1771832811266,4.85855027,79.56,79.53,4.85855027]
[1771832811647,0.49365556,79.559,79.52,4.85855027]
[1771832811853,4.85855027,79.54,79.51,4.85855027]
[1771832812053,4.85855027,79.56,79.473,6.56829752]
[1771832812054,4.85855027,79.53,79.508,31.44337676]
[1771832812761,0.49365556,79.534,79.508,31.44337676]
[1771832812962,4.85855027,79.54,79.51,4.85855027]
[1771832813166,4.85855027,79.54,79.511,0.5225716]
[1771832813665,4.85855027,79.56,79.531,0.5225716]
[1771832813871,0.49365556,79.559,79.531,0.5225716]
[1771832814071,0.49365556,79.559,79.532,12.57355529]
[1771832814567,0.49365556,79.559,79.533,0.5225716]
[1771832816674,0.49365556,79.559,79.535,0.5225716]
[1771832817957,0.49365556,79.559,79.536,12.57292295]
[1771832819655,4.86314273,79.55,79.528,12.5741877]
[1771832819863,0.49365556,79.549,79.528,12.5741877]
[1771832820062,0.49365556,79.549,79.528,13.0967593]
[1771832820266,0.49365556,79.549,79.528,12.5741877]
[1771832820471,4.86314273,79.56,79.531,0.5225716]
[1771832821072,0.49365556,79.559,79.531,0.5225716]
[1771832822681,0.49365556,79.549,79.518,31.96192486]
[1771832822866,0.49365556,79.529,79.478,0.5225716]
[1771832823060,4.86314273,79.5,79.471,12.58309579]
[1771832823395,4.86314273,79.52,79.471,12.58309579]
[1771832823396,4.86314273,79.49,79.472,0.5225716]
[1771832824277,6.56827301,79.493,79.472,0.5225716]
[1771832824278,4.86314273,79.48,79.472,0.5225716]
[1771832824477,4.86314273,79.49,79.472,0.5225716]
[1771832824662,4.86314273,79.52,79.475,0.5225716]
[1771832824663,4.86314273,79.5,79.475,0.5225716]
[1771832824981,5.35679829,79.51,79.475,0.5225716]
[1771832825167,4.86314273,79.5,79.475,0.5225716]
[1771832825367,13.04600533,79.5,79.475,0.5225716]
[1771832826864,13.04600533,79.5,79.477,0.5225716]
[1771832828274,13.04600533,79.5,79.479,0.5225716]
[1771832828470,0.49365556,79.53,79.491,0.5225716]
[1771832828787,0.49365556,79.535,79.501,0.5225716]
[1771832829084,13.04600533,79.53,79.501,0.5225716]
[1771832829282,0.49365556,79.519,79.491,0.5225716]
[1771832830571,0.49365556,79.519,79.493,0.5225716]
[1771832832687,13.04600533,79.52,79.495,0.5225716]
[1771832832891,0.49365556,79.509,79.482,0.5225716]
[1771832833190,13.04600533,79.51,79.482,0.5225716]
[1771832834683,0.49365556,79.509,79.482,0.5225716]
[1771832834878,0.49365556,79.499,79.478,12.5819669]
[1771832835391,13.04600533,79.49,79.478,12.5819669]
[1771832835590,0.49365556,79.499,79.478,12.5819669]
[1771832835790,0.49365556,79.489,79.474,12.58268162]
[1771832835972,0.49365556,79.479,79.457,12.58532362]
[1771832836289,0.32759777,79.479,79.457,12.58532362]
[1771832836589,0.32759777,79.479,79.466,1.15755787]
[1771832837189,13.04600533,79.47,79.45,0.5225716]
[1771832837384,12.57750889,79.507,79.451,0.53861886]
[1771832837575,13.04600533,79.48,79.451,0.53861886]
[1771832837888,13.04600533,79.5,79.471,0.53861886]
[1771832838791,13.04600533,79.48,79.451,0.53861886]
[1771832838970,13.04600533,79.48,79.453,0.53861886]
[1771832840187,12.57940614,79.496,79.461,0.53861886]
[1771832840586,13.04600533,79.49,79.461,0.53861886]
[1771832840982,13.04600533,79.48,79.454,0.53861886]
[1771832841188,13.04600533,79.47,79.454,0.53861886]
[1771832842581,13.04600533,79.48,79.454,0.53861886]
[1771832842969,13.04600533,79.47,79.456,0.53861886]
[1771832843891,13.04600533,79.48,79.456,0.53861886]
[1771832845392,102.71037445,79.489,79.456,0.53861886]
[1771832845393,71.25937461,79.489,79.456,0.53861886]
[1771832845695,13.04600533,79.48,79.456,0.53861886]
[1771832846680,13.04600533,79.48,79.458,0.53861886]
[1771832847395,4.873052,79.48,79.458,0.53861886]
[1771832848495,4.873052,79.47,79.445,0.53861886]
[1771832848699,4.873052,79.48,79.447,0.53861886]
[1771832849402,4.873052,79.47,79.447,0.53861886]
[1771832850974,4.873052,79.48,79.449,0.53861886]
[1771832851880,71.25937461,79.489,79.451,0.53861886]
[1771832852075,4.873052,79.51,79.485,0.53861886]
[1771832852502,4.873052,79.5,79.485,0.53861886]
[1771832855910,4.873052,79.5,79.451,3.69383402]
[1771832855911,4.873052,79.49,79.455,0.53861886]
[1771832856099,4.873052,79.47,79.456,12.58558195]
[1771832856302,4.873052,79.48,79.456,13.1755121]
[1771832856604,4.873052,79.48,79.457,0.58993015]
[1771832857398,4.873052,79.48,79.458,13.17519532]
[1771832858004,4.873052,79.48,79.459,0.58993015]
[1771832858208,4.873052,79.5,79.461,0.58993015]
[1771832858424,4.873052,79.49,79.461,0.58993015]
[1771832858609,4.873052,79.49,79.458,44.04842809]
[1771832858610,4.873052,79.51,79.481,0.58993015]
[1771832860105,4.873052,79.51,79.483,0.58993015]
[1771832861014,12.575769,79.518,79.483,0.58993015]
[1771832861389,13.04268082,79.51,79.483,0.58993015]
[1771832863711,0.03511659,79.517,79.485,0.58993015]
[1771832866813,0.03511659,79.517,79.449,50.34615688]
[1771832866814,64.30862802,79.519,79.501,0.58993015]
[1771832867514,13.09253386,79.54,79.501,0.58993015]
[1771832868108,0.05696979,79.539,79.501,0.58993015]
[1771832868517,12.62948011,79.539,79.503,0.59947743]
[1771832868716,13.04268082,79.52,79.496,0.59947743]
[1771832869016,0.05696979,79.519,79.496,0.59947743]
[1771832869315,0.05696979,79.519,79.462,62.92315823]
[1771832869316,13.04268082,79.51,79.481,0.59947743]
[1771832869709,0.05696979,79.519,79.481,0.59947743]
[1771832870813,12.63258065,79.519,79.483,0.59947743]
[1771832871014,0.06392401,79.518,79.483,0.59947743]
[1771832871197,13.04268082,79.51,79.483,0.59947743]
[1771832871521,0.06392401,79.518,79.483,0.59947743]
[1771832871810,13.04268082,79.52,79.491,0.59947743]
[1771832872013,12.57471208,79.525,79.491,0.59947743]
[1771832875939,0.08062255,79.525,79.493,0.59947743]
[1771832876121,13.04268082,79.52,79.493,0.59947743]
[1771832878005,0.08703653,79.518,79.489,0.59947743]
[1771832878327,0.08703653,79.518,79.491,0.59947743]
[1771832878512,64.30862802,79.517,79.491,0.59947743]
[1771832878820,0.09018837,79.516,79.491,0.59947743]
[1771832879210,64.30862802,79.517,79.491,0.59947743]
[1771832879413,64.30862802,79.517,79.501,0.59947743]
[1771832880614,64.30862802,79.517,79.503,0.59947743]
[1771832880921,50.25775362,79.59,79.503,0.59947743]
[1771832880922,12.57325968,79.534,79.503,0.59947743]
[1771832881222,76.8818877,79.534,79.503,0.59947743]
[1771832881925,76.8818877,79.534,79.511,0.59947743]
[1771832881926,64.30862802,79.534,79.511,0.59947743]
[1771832882112,12.57143705,79.546,79.511,0.59947743]
[1771832882826,12.57143705,79.546,79.513,0.59947743]
[1771832883003,25.70941504,79.55,79.521,0.59947743]
[1771832883205,17.53460103,79.55,79.521,0.59947743]
[1771832883720,17.53460103,79.55,79.525,0.59947743]
[1771832883721,4.96983034,79.55,79.525,0.59947743]
[1771832884221,0.10541281,79.55,79.525,0.59947743]
[1771832884730,4.96983034,79.55,79.526,12.57450393]
[1771832885416,4.96983034,79.55,79.527,0.59947743]
[1771832885417,0.10541281,79.55,79.527,0.59947743]
[1771832886322,0.11413418,79.549,79.526,12.57450393]
[1771832886624,0.11413418,79.539,79.518,12.57569487]
[1771832887523,64.30862802,79.56,79.521,0.59947743]
[1771832887715,4.86441753,79.55,79.521,0.59947743]
[1771832887914,0.11697479,79.558,79.531,0.59947743]
[1771832888109,69.17304555,79.56,79.531,0.59947743]
[1771832888316,4.86441753,79.56,79.531,0.59947743]
[1771832889027,4.86441753,79.56,79.533,0.59947743]
[1771832894034,4.86441753,79.56,79.535,0.59947743]
[1771832895331,4.86441753,79.54,79.51,0.59947743]
[1771832895532,4.86441753,79.53,79.51,0.59947743]
[1771832899426,17.43837474,79.53,79.51,0.59947743]
[1771832902339,17.43837474,79.53,79.504,0.65601738]
[1771832902340,4.86441753,79.52,79.504,0.65601738]
[1771832902537,0.1605661,79.509,79.492,12.57981334]
[1771832902732,4.86441753,79.51,79.492,12.57981334]
[1771832902944,4.86441753,79.51,79.493,0.65601738]
[1771832905138,4.86441753,79.52,79.491,0.65601738]
[1771832905742,5.03182628,79.52,79.491,0.65601738]
[1771832907441,5.03182628,79.52,79.493,0.65601738]
[1771832907747,4.86441753,79.51,79.492,12.57988225]
[1771832908330,4.86441753,79.51,79.492,13.23589963]
[1771832908520,4.86441753,79.51,79.493,0.65601738]
[1771832908724,0.17184053,79.514,79.493,0.65601738]
[1771832908725,4.86441753,79.52,79.493,0.65601738]
[1771832909232,5.04058862,79.52,79.495,0.65601738]
[1771832910545,4.86441753,79.53,79.5,4.86441753]
[1771832910751,4.86441753,79.53,79.501,0.65601738]
[1771832915151,64.30862802,79.549,79.521,0.65601738]
[1771832915332,12.57102629,79.548,79.521,0.65601738]
[1771832915532,0.1885783,79.547,79.521,0.65601738]
[1771832918061,4.86441753,79.54,79.521,0.65601738]
[1771832918455,0.19446675,79.571,79.523,0.65601738]
[1771832918654,0.19446675,79.588,79.551,0.65601738]
[1771832919158,4.96441753,79.58,79.551,0.65601738]
[1771832920053,4.96441753,79.58,79.553,0.65601738]
[1771832922039,5.16457216,79.58,79.555,0.65601738]
[1771832922357,0.2020072,79.579,79.555,0.65601738]
[1771832923460,5.06825602,79.57,79.548,0.65601738]
[1771832923656,0.20383849,79.569,79.542,0.65601738]
[1771832926866,12.77588163,79.576,79.544,0.65601738]
[1771832927768,0.21268424,79.575,79.544,0.65601738]
[1771832929246,64.30862802,79.574,79.546,0.66659559]
[1771832929667,12.56707677,79.573,79.546,0.66659559]
[1771832929854,12.78315869,79.573,79.546,0.66659559]
[1771832933356,12.78315869,79.573,79.545,12.5715004]
[1771832933357,0.21608192,79.573,79.548,0.66659559]
[1771832933558,76.87555807,79.574,79.548,0.66659559]
[1771832933949,64.30862802,79.574,79.551,0.66659559]
[1771832934154,0.1,79.58,79.561,0.66659559]
[1771832934457,0.1,79.58,79.571,0.66659559]
[1771832940679,4.96441753,79.58,79.54,4.86441753]
[1771832940861,4.86441753,79.56,79.48,61.50441753]
[1771832941067,4.86441753,79.56,79.483,3.69383402]
[1771832941271,4.86347872,79.56,79.53,4.86347872]
[1771832942173,4.86347872,79.56,79.531,12.57371339]
[1771832942774,55.92677969,79.579,79.531,12.57371339]
[1771832942775,0.67183847,79.574,79.541,0.66659559]
[1771832942969,4.86347872,79.57,79.541,0.66659559]
[1771832943172,4.86347872,79.56,79.541,0.66659559]
[1771832943370,4.86347872,79.55,79.531,44.00799687]
[1771832943577,4.86347872,79.55,79.531,12.57371339]
[1771832944161,0.67183847,79.551,79.531,12.57371339]
[1771832945582,0.67183847,79.551,79.522,31.43747463]
[1771832945583,0.67183847,79.549,79.527,12.57434042]
[1771832947184,0.67183847,79.559,79.531,0.66659559]
[1771832949278,0.67183847,79.559,79.533,0.66659559]
[1771832952389,4.86347872,79.54,79.524,0.66659559]
[1771832952962,52.99949351,79.546,79.525,0.66659559]
[1771832953487,52.99949351,79.546,79.531,0.66659559]
[1771832955791,4.86347872,79.54,79.518,0.66659559]
[1771832956002,0.67183847,79.545,79.518,0.66659559]
[1771832956491,52.99949351,79.546,79.521,0.66659559]
[1771832956784,52.99949351,79.546,79.523,0.66659559]
[1771832959673,52.99949351,79.546,79.525,0.61713475]
[1771832962590,52.99949351,79.546,79.495,3.69383402]
[1771832962591,0.65913826,79.564,79.531,0.61713475]
[1771832964186,5.52261698,79.56,79.531,0.61713475]
[1771832964393,0.65913826,79.559,79.531,0.61713475]
[1771832964571,0.65913826,79.559,79.532,12.57355529]
[1771832964768,0.65913826,79.559,79.533,0.61713475]
[1771832966689,0.65913826,79.559,79.535,0.61713475]
[1771832970004,0.65913826,79.559,79.536,13.1900577]
[1771832970386,0.65913826,79.559,79.537,0.61713475]
[1771832971018,0.65913826,79.559,79.538,12.5726068]
[1771832971312,0.65913826,79.559,79.539,0.61713475]
[1771832972198,13.22858445,79.558,79.539,0.61713475]
[1771832972512,0.65913826,79.557,79.539,0.61713475]
[1771832973298,0.65913826,79.555,79.539,0.61713475]
[1771832973506,0.65913826,79.555,79.525,0.61713475]
[1771832975106,43.99527364,79.554,79.525,0.61713475]
[1771832975316,0.65913826,79.553,79.525,0.61713475]
[1771832976104,0.65913826,79.549,79.519,0.61713475]
[1771832977409,0.65913826,79.539,79.5,4.86347872]
[1771832977713,0.65913826,79.539,79.49,31.45022896]
[1771832977714,0.65913826,79.519,79.496,0.61713475]
[1771832978607,0.65913826,79.509,79.48,4.86347872]
[1771832978811,0.65913826,79.509,79.471,12.58320645]
[1771832979195,0.65913826,79.509,79.47,4.86347872]
[1771832979394,0.65913826,79.507,79.472,3.69383402]
[1771832979594,0.65913826,79.507,79.471,12.58320645]
[1771832980596,0.65913826,79.505,79.472,0.61713475]
[1771832981818,0.65913826,79.499,79.472,0.61713475]
[1771832983417,0.65913826,79.489,79.469,0.61713475]
[1771832983593,0.65913826,79.489,79.454,0.61713475]
[1771832983795,4.86347872,79.49,79.454,0.61713475]
[1771832983796,0.65913826,79.487,79.454,0.61713475]
[1771832985507,0.65913826,79.485,79.454,0.61713475]
[1771832988197,12.5811484,79.484,79.454,0.61713475]
[1771832988398,13.14496192,79.484,79.454,0.61713475]
[1771832988805,0.56381352,79.483,79.454,0.61713475]
[1771832989324,12.58146498,79.482,79.454,0.61713475]
[1771832989822,0.56381352,79.479,79.454,0.61713475]
[1771832990405,0.56381352,79.484,79.46,4.86347872]
[1771832990607,0.56381352,79.51,79.471,0.60810166]
[1771832990814,13.87087118,79.482,79.47,4.86347872]
[1771832991127,0.62074942,79.481,79.46,4.86347872]
[1771832991807,13.87087118,79.482,79.461,12.58479002]
[1771832992309,0.62074942,79.5,79.47,4.86347872]
[1771832992911,0.62074942,79.5,79.48,4.86347872]
[1771832993419,0.62074942,79.5,79.47,4.86347872]
[1771832994215,4.86347872,79.51,79.48,4.86347872]
[1771832994713,0.62074942,79.509,79.48,4.86347872]
[1771832997125,0.62074942,79.509,79.49,4.86347872]
[1771832997308,0.62074942,79.509,79.481,12.58162328]
[1771832999126,0.62074942,79.509,79.48,4.86347872]
[1771833001122,0.62074942,79.509,79.481,12.58162328]
[1771833001829,0.62074942,79.507,79.481,12.58162328]
[1771833002035,0.62074942,79.507,79.48,4.86347872]
[1771833002229,0.62074942,79.507,79.475,12.58244788]
[1771833002537,0.62074942,79.479,79.45,5.06347872]
[1771833003233,0.62074942,79.479,79.45,17.6590834]
[1771833003412,0.62074942,79.486,79.46,4.87266223]
[1771833003833,0.62074942,79.486,79.47,4.87266223]
[1771833004013,0.62074942,79.499,79.47,4.87266223]
[1771833005513,0.62074942,79.498,79.461,12.58479002]
[1771833006627,0.62074942,79.505,79.47,4.87266223]
[1771833006934,0.62074942,79.499,79.47,4.87266223]
[1771833007835,4.87266223,79.49,79.46,4.87266223]
[1771833008145,0.62074942,79.489,79.46,4.87266223]
[1771833010033,0.62074942,79.498,79.47,4.87266223]
[1771833010234,12.57804305,79.504,79.48,4.87266223]
[1771833010235,0.62074942,79.504,79.48,4.87266223]
[1771833012336,0.62074942,79.502,79.47,4.87266223]
[1771833014235,0.62074942,79.502,79.471,12.58320645]
[1771833016141,31.44027107,79.516,79.471,12.58320645]
[1771833016142,0.62074942,79.499,79.471,12.58320645]
[1771833018628,4.87266223,79.51,79.48,4.87266223]
[1771833018828,0.62074942,79.509,79.48,4.87266223]
[1771833020544,0.62074942,79.509,79.481,12.58162328]
[1771833025246,0.62074942,79.507,79.477,12.58211702]
[1771833027147,12.57608531,79.516,79.49,4.87266223]
[1771833027331,0.62074942,79.515,79.48,4.87266223]
[1771833031643,0.62074942,79.515,79.481,12.58162328]
[1771833035641,4.87266223,79.53,79.496,0.5195669]
[1771833036754,12.57402959,79.529,79.496,0.5195669]
[1771833037647,0.57050424,79.526,79.498,0.51636207]
[1771833038936,0.57050424,79.519,79.499,12.57877457]
[1771833039442,0.57050424,79.519,79.499,13.09200501]
[1771833041553,0.57050424,79.519,79.494,0.51046097]
[1771833044940,0.57050424,79.519,79.491,12.5800405]
[1771833045145,4.87266223,79.52,67.453,25.39921558]
[1771833045146,0.57050424,79.499,79.471,0.50567838]
[1771833045365,0.57050424,79.499,79.472,13.08872649]
[1771833045655,0.57050424,79.499,79.473,0.50567838]
[1771833046364,0.57050424,79.499,79.472,12.58304811]
[1771833046365,0.57050424,79.505,79.474,0.50451686]
[1771833046559,0.57050424,79.505,79.472,44.0406684]
[1771833046560,0.57050424,79.505,79.481,0.50451686]
[1771833047758,0.57050424,79.505,79.482,12.58146498]
[1771833047958,0.57050424,79.505,79.483,0.5022337]
[1771833049473,0.57050424,79.505,79.484,12.5811484]
[1771833049773,0.57050424,79.505,79.485,0.50000269]
[1771833053875,0.57050424,79.505,79.486,12.58083184]
[1771833054659,0.57050424,79.505,79.486,13.0754774]
[1771833055069,0.57050424,79.505,79.487,0.49464556]
[1771833055577,0.50705537,79.514,79.491,0.49361077]
[1771833056090,0.50705537,79.514,79.5,5.366273]
[1771833056270,0.50705537,79.518,79.501,0.49258786]
[1771833058078,0.50705537,79.518,79.5,12.57851066]
[1771833058678,0.50705537,79.524,79.501,0.49057716]
[1771833058885,0.50705537,79.524,79.51,4.87266223]
[1771833059579,0.50705537,79.524,79.509,0.49057716]
[1771833060381,4.87266223,79.54,79.48,4.87266223]
[1771833060382,0.50705537,79.539,79.511,0.48861239]
[1771833060561,0.50705537,79.539,79.516,0.48861239]
[1771833060761,0.50705537,79.539,79.511,0.48861239]
[1771833061985,0.50705537,79.539,79.513,0.48764689]
[1771833064984,0.50705537,79.561,79.531,0.48481644]
[1771833065184,0.50705537,79.559,79.54,4.87266223]
[1771833065376,0.50705537,79.559,79.54,5.34532327]
[1771833065576,12.56783317,79.569,79.52,4.86142872]
[1771833065577,0.1,79.58,79.551,0.54156082]
[1771833065778,0.1,79.58,79.56,4.86142872]
[1771833066282,0.50705537,79.579,79.54,4.86142872]
[1771833066486,0.50705537,79.56,79.53,4.86142872]
[1771833066686,44.08101286,79.58,79.532,0.54156082]
[1771833066872,12.56770852,79.569,79.533,12.5733972]
[1771833067185,12.56623459,79.579,79.551,0.54156082]
[1771833068090,0.1,79.58,79.551,0.54156082]
[1771833068787,0.50705537,79.579,79.551,0.54156082]
[1771833073294,0.50705537,79.569,79.542,0.54156082]
[1771833074288,0.1,79.58,79.561,0.54156082]
[1771833075495,0.50705537,79.599,79.572,0.54156082]
[1771833078404,0.50705537,79.599,79.574,0.50146485]
[1771833081493,0.50705537,79.599,79.576,0.50146485]
[1771833083902,0.5321174,79.609,79.581,0.50146485]
[1771833084098,0.5321174,79.609,79.59,4.86142872]
[1771833084404,0.5321174,79.609,79.591,0.50146485]
[1771833085585,0.5321174,79.609,79.592,13.06554164]
[1771833087793,0.5321174,79.609,79.588,12.56462232]
[1771833090204,0.1,79.61,79.577,31.41611269]
[1771833090205,0.5321174,79.599,79.577,31.41611269]
[1771833090582,1e-08,79.6,79.577,31.91757754]
[1771833090788,1e-08,79.6,79.578,0.50146485]
[1771833091001,1e-08,79.6,79.579,0.50146485]
[1771833091197,4.86142872,79.59,79.528,0.50146485]
[1771833091390,4.86142872,79.55,79.528,0.50146485]
[1771833092290,4.86142872,79.55,79.529,12.57402959]
[1771833092688,0.25635916,79.569,79.541,0.50146485]
[1771833094301,0.2552768,79.575,79.543,0.50146485]
[1771833094803,4.86142872,79.57,79.543,0.50146485]
[1771833095308,5.11617365,79.57,79.543,0.50146485]
[1771833097505,12.84658704,79.569,79.543,0.50146485]
[1771833097905,12.84658704,79.569,79.544,12.57165845]
[1771833098104,12.84658704,79.569,79.545,0.50146485]
[1771833098811,0.27887852,79.569,79.545,0.50146485]
[1771833099416,0.30246089,79.579,79.545,0.50146485]
[1771833099613,17.42752066,79.58,79.544,44.00080458]
[1771833099614,0.30246089,79.577,79.547,0.50146485]
[1771833101310,4.86142872,79.57,79.548,12.57102629]
[1771833101516,4.86142872,79.57,79.549,0.50146485]
[1771833101715,0.32550464,79.592,79.551,0.50146485]
[1771833102016,0.32550464,79.589,79.551,0.50146485]
[1771833102717,0.32550464,79.589,79.552,43.99637971]
[1771833102914,0.32550464,79.589,79.553,0.50146485]
[1771833104897,0.32550464,79.589,79.555,0.50146485]
[1771833105302,0.37002521,79.594,79.561,0.50146485]
[1771833107019,4.86142872,79.59,79.562,12.56881425]
[1771833107221,0.39152579,79.589,79.563,0.50146485]
[1771833109716,0.39152579,79.589,79.565,0.60522185]
[1771833110118,12.56327497,79.598,79.566,0.60841419]
[1771833110925,4.86142872,79.59,79.566,0.60841419]
[1771833111225,4.86142872,79.59,79.568,0.60841419]
[1771833112020,4.86142872,79.59,79.569,12.56770852]
[1771833112227,4.92302862,79.59,79.57,0.60841419]
[1771833112418,12.56327497,79.598,79.57,0.60841419]
[1771833112622,102.4,79.599,79.57,0.60841419]
[1771833113007,12.56312972,79.598,79.57,0.60841419]
[1771833113408,12.56312972,79.598,79.569,12.56770852]
[1771833113607,4.86142872,79.59,79.569,12.56770852]
[1771833115131,0.03042758,79.589,79.569,12.56770852]
[1771833115308,0.03042758,79.589,79.569,0.63921414]
[1771833115629,0.60152305,79.579,79.541,12.57213261]
[1771833115832,0.60152305,79.569,79.541,12.57213261]
[1771833117523,0.60152305,79.569,79.542,0.60522185]
[1771833119127,102.4,79.579,79.561,0.60522185]
[1771833119327,13.16638917,79.587,79.562,12.56881425]
[1771833119625,0.60152305,79.586,79.563,0.60522185]
[1771833120907,102.4,79.588,79.563,0.60522185]
[1771833120908,115.56632454,79.588,79.563,0.60522185]
[1771833121111,0.60152305,79.587,79.563,0.60522185]
[1771833122130,0.60152305,79.587,79.56,18.03568154]
[1771833122313,0.60152305,79.587,79.561,0.60522185]
[1771833123528,12.56502399,79.586,79.561,0.60522185]
[1771833123730,0.60152305,79.585,79.561,0.60522185]
[1771833125426,0.60152305,79.579,79.56,12.56903097]
[1771833126230,0.60152305,79.579,79.556,0.60522185]
[1771833128133,0.60152305,79.586,79.558,0.60522185]
[1771833129039,0.60152305,79.599,79.561,0.60522185]
[1771833129227,0.60152305,79.598,79.561,0.60522185]
[1771833134150,0.60152305,79.596,79.563,0.60522185]
[1771833134457,4.86056196,79.6,79.563,0.6203686]
[1771833134458,1e-08,79.6,79.563,0.6203686]
[1771833135430,12.56328756,79.597,79.563,0.6203686]
[1771833135657,4.86056196,79.59,79.563,0.6203686]
[1771833135838,0.60152305,79.569,79.53,4.86056196]
[1771833136147,0.60152305,79.581,79.55,4.86056196]
[1771833136751,102.4,79.589,79.56,4.86056196]
[1771833137555,12.56470824,79.588,79.56,4.86056196]
[1771833137852,12.56470824,79.588,79.561,0.76237154]
[1771833139032,102.4,79.589,79.563,0.76237154]
[1771833139565,103.14438608,79.589,79.563,0.76237154]
[1771833140051,0.74438608,79.589,79.563,0.76237154]
[1771833140850,4.86056196,79.6,79.563,0.76237154]
[1771833141029,3.69383402,79.605,79.564,12.56849831]
[1771833141231,3.69383402,79.605,79.565,0.76237154]
[1771833141452,102.4,79.604,79.565,0.76237154]
[1771833141832,4.86056196,79.59,79.565,0.76237154]
[1771833142031,114.9621828,79.604,79.565,0.76237154]
[1771833142767,0.25836844,79.603,79.565,0.76237154]
[1771833145942,0.30269757,79.601,79.567,0.76237154]
[1771833146755,114.96249842,79.602,79.567,0.76237154]
[1771833146756,0.31780197,79.599,79.567,0.76237154]
[1771833150764,0.37650449,79.597,79.546,0.76237154]
[1771833150965,0.37650449,79.595,79.546,0.76237154]
[1771833152171,0.39076114,79.593,79.548,0.76237154]
[1771833154157,0.41878507,79.591,79.54,12.5722664]
[1771833154359,0.41878507,79.591,79.541,0.76237154]
[1771833154553,43.97426876,79.592,79.53,0.76237154]
[1771833154554,0.43255609,79.586,79.53,0.76237154]
[1771833154760,0.43255609,79.584,79.53,0.76237154]
[1771833156970,0.43255609,79.584,79.487,50.3223504]
[1771833156971,0.45962543,79.579,79.524,0.76237154]
[1771833157168,0.45962543,79.574,79.519,0.76237154]
[1771833158068,207.33071131,79.583,79.499,0.76237154]
[1771833158069,0.47292736,79.569,79.499,0.76237154]
[1771833159679,0.49907461,79.564,79.499,0.76237154]
[1771833161374,257.64126278,79.568,79.499,0.76237154]
[1771833161375,0.52462466,79.559,79.499,0.76237154]
[1771833162172,0.52462466,79.559,79.501,0.76237154]
[1771833163581,0.54959115,79.554,79.503,0.76237154]
[1771833165583,3.69383402,79.555,79.503,0.76237154]
[1771833165584,0.5739874,79.552,79.503,0.76237154]
[1771833165784,0.5739874,79.55,79.503,0.76237154]
[1771833168984,209.25238027,79.549,79.503,0.76237154]
[1771833169173,0.621121,79.548,79.505,0.89719346]
[1771833172286,0.66612611,79.545,79.505,0.89719346]
[1771833174574,0.6878607,79.543,79.505,0.89719346]
[1771833175996,0.6878607,79.543,79.498,0.89719346]
[1771833177496,0.71953535,79.541,79.498,0.89719346]
[1771833178078,0.71953535,79.539,79.498,0.89719346]
[1771833178278,0.72985196,79.537,79.5,0.89719346]
[1771833179879,102.4,79.538,79.5,0.89719346]
[1771833179880,12.57292295,79.536,79.5,0.89719346]
[1771833180092,102.4,79.535,79.5,0.89719346]
[1771833181600,12.57323911,79.534,79.502,0.89719346]
[1771833182700,0.76994696,79.533,79.502,0.89719346]
[1771833183716,0.77968455,79.531,79.502,0.89719346]
[1771833183888,0.77968455,79.531,79.503,0.89719346]
[1771833184083,0.77968455,79.529,79.503,0.89719346]
[1771833186305,13.37301316,79.528,79.503,0.89719346]